{"text_format":"1","workbook":"xlsx","n_sheets":7,"sheets":["NAVODILA","VNOS PODATKOV","8B - POGOJI","10A MNENJE","20D SOGLASJE MR","10B MNENJE DMO","BAZA PODATKOV"],"not_rendered":{"charts":0,"images":18,"macros":1,"external_links":0,"defined_names":23,"comments":0,"pivot_tables":0},"unopened":[],"bounds":{"document_bytes":16777216,"sheet_cells":100000,"rows_first":2000,"rows_last":500,"rows_between":2000,"halvings":0,"cell_chars":16384,"cell_head_chars":4096},"cells_cut":0,"cells_raw":0,"read":"whole","date_system":"1900"}

{"sheet":"NAVODILA","index":0,"n_rows":43,"n_cols":1,"rows_kept":43,"cut":false,"hidden":false,"merged":[]}
[]
["NAVODILA"]
[]
["Aplikacija za pripravo obrazcev v zvezi z graditvijo objektov je pripomoček za pripravo dokumentacije in zahtevkov, izdelan v skladu s Pravilnikom o projektni in drugi dokumentaciji ter obrazcih pri graditvi objektov (Uradni list RS, št. 30/23). Nova verzija obrazcev glede na prejšnjo uvaja nekaj sprememb, opisanih v nadaljevanju. "]
[]
["Za pravilno delovanje navigacijskih in drugih ukaznih gumbov je potrebno ob odpiranju dokumenta omogočiti uporabo makrov. Uporaba makrov je vezana izključno na delovanje navigacijskih gumbov in za prenašanje podatkov med datotekami. Vse osnovne funkcionalnosti, torej vnos in izpis podatkov, delujejo tudi brez delovanja makrov. Namesto z uporabo navigacijskih gumbov lahko posamezne liste izbirate v spodnji vrstici aplikacije. "]
[]
["DATOTEKE"]
[]
["Priloge so razdeljene v več datotek. Vsaka izmed datotek je pripravljena za posamezno skupino uporabnikov (projektanti, izvajalci, mnenjedajalci, upravni organ) tako, da vključuje vse faze posameznega postopka. Sklop za projektante je dodatno razdeljen glede na zahtevnost nameravane gradnje. \nSeznam datotek:\n- projektanti - obrazci za zahtevne in manj zahtevne objekte\n- projektanti - obrazci za nezahtevne objekte\n- projektanti - obrazci za spremembo namembnosti\n- projektanti - manjša rekonstrukcija\n- projektanti - legalizacije\n- projektanti - začasni objekti\n- izvajalci - DZO\n- mnenjedajalci - projektni pogoji in mnenja\n- upravni organ - odločbe\n\nV nadaljevanju so opisana navodila za uporabo obrazcev za mnenjedajalce."]
[]
["ZAŠČITA PODATKOV"]
[]
["Vsi listi v datoteki so odklenjeni. Kljub temu priporočamo, da liste zaklenete tako, da na zavihku Pregled na traku v skupini Spremembe izberete Zaščiti list. Namen te osnovne zaščite je preprečiti nenamerno spreminjanje že izpolnjenih polj. \n\nOPOZORILO:\nPodatke lahko vnašate le v rumeno obarvana okenca, vrstice pa lahko dodajate le tam, kjer je to izrecno navedeno, sicer se podatki morda ne bodo prenesli pravilno!"]
[]
["KAZALO VSEBINE"]
[]
["List za vnos podatkov ima v zgornjem delu kazalo celotne vsebine. Vsebina je razporejena v tabelo po fazah upravnega postopka. Naslovi delujejo kot povezave na posamezne liste."]
[]
["VNAŠANJE PODATKOV"]
[]
["V novi verziji obrazcev se na listu za vnos podatkov vnašajo le tisti podatki, ki imajo vedno samo eno vrednost. Podatki, ki imajo lahko poljubno mnogo vrednosti, kot na primer navajanje zemljiških parcel, pa se vnašajo neposredno v obrazce. "]
[]
["Polja za vnos podatkov so smiselno razdeljena na posamezna poglavja. Nekatere vsebine vnašamo s pomočjo spustnih menijev, pri nekaterih vsebinah pa je potrebno označiti izbiro. Pod posameznimi naslovi so opombe z dodatnimi navodili za izpolnjevanje, stolpec A pa je odklenjen in je namenjen internim opombam uporabnika."]
[]
["PRENAŠANJE PODATKOV MED DATOTEKAMI"]
[]
["Aplikacija omogoča prenos podatkov iz datoteke projektanta. Če želimo prenesti podatke, lahko to storimo s pomočjo ustreznega gumba na listu vnos podatkov. Omogočen je prenos podatkov iz datotek za zahtevne in manj zahtevne objekte. Pred prenosom morata biti izvorna in ciljna datoteka odprti. \n\nPoleg gumba za prenos podatkov je na voljo tudi gumb počisti vnosna polja, s katerim izbrišemo vse vnešene vsebine iz lista vnos podatkov, ne pa tudi vsebin, ki se vnašajo direktno v posamezne obrazce."]
[]
["PRILAGAJANJE VIŠINE VRSTIC"]
[]
["Različne verzije programa na različne načine prikazujejo višino in širino celic, zato se lahko zgodi, da vsebina posameznih polj ni v celoti vidna. V tem primeru lahko višino celice spremenite tako, da v meniju Osnovno v skupini Poravnava izberete Prelomi besedilo, oziroma ročno spremenite višino vrstice tako, da najprej izberite celotno vrstico v stolpcu z oznakami vrstic (sivi stolpec s številkami vrstic na skrajni levi strani), na zavihku Osnovno v skupini Celice kliknite Oblika, nato pa v razdelku Velikost celice kliknite Samodejno prilagodi višino vrstice oziroma vpišete željeno višino vrstice. Enako velja za prilagajanje širine stolpcev."]
[]
["TISKANJE IN SHRANJEVANJE"]
[]
["Po končanem vnosu podatkov, potrebnih za izpolnjevanje določenega obrazca, lahko obrazec natisnete ali pa shranite kot .pdf dokument. Za tiskanje in pripravo .pdf dokumentov lahko uporabite ukazne gumbe ali pa izberete ustrezen ukaz v meniju."]
[]
["POPRAVKI V VERZIJI 3.1"]
[]
["- odklenjeni vsi obrazci."]
[]
[]
["NADALJUJ NA VNOS PODATKOV"]

{"sheet":"VNOS PODATKOV","index":1,"n_rows":77,"n_cols":14,"rows_kept":77,"cut":false,"hidden":false,"merged":[[9,2,9,3]]}
[null,null,"VSEBINA DATOTEKE:"]
[null,null,"POGOJI, MNENJA IN SOGLASJA"]
[null,null,"Obarvana polja delujejo kot povezave na ustrezne liste."]
[null,null,"PRIDOBIVANJE PROJEKTNIH POGOJEV","PRIDOBIVANJE MNENJ","PRIDOBIVANJE GRADBENEGA DOVOLJENJA","SPREMEMBA GRADBENEGA DOVOLJENJA","PRIJAVA PRIPRAVLJALNIH DEL","PRIJAVA ZAČETKA GRADNJE","POSKUSNO OBRATOVANJE","PODALJŠANJE POSKUSNEGA OBRATOVANJA","PRIDOBIVANJE UPORABNEGA DOVOLJENJA","SPREMEMBA INVESTITORJA","DOPOLNITEV VLOGE","PODALJŠANJE ROKA ZA DOPOLNITEV"]
[null,null,"POGOJI, MNENJA, ODLOČBE"]
[null,null,"8B - PROJEKTNI POGOJI","10A - MNENJE",null,null,null,null,null,null,"10B - MNENJE GLEDE DOPUSTNIH MANJŠIH ODSTOPANJ"]
[null,null,null,"20D - SOGLASJE MR"]
[]
[]
["PROSTOR ZA OPOMBE UPORABNIKA",null,"VNOS PODATKOV"]
[]
[null,"A","UDELEŽENCI PRI GRADITVI"]
[null,null,"POOBLAŠČENEC"]
[null,"A1","INVESTITOR"]
[null,"A1.1","INVESTITOR"]
[null,null,"INVESTITOR 1"]
[null,null,"ime in priimek ali naziv družbe"]
[null,null,"naslov ali poslovni naslov družbe"]
[null,null,"INVESTITOR 2"]
[null,null,"ime in priimek ali naziv družbe"]
[null,null,"naslov ali poslovni naslov družbe"]
[null,null,"INVESTITOR 3"]
[null,null,"ime in priimek ali naziv družbe"]
[null,null,"naslov ali poslovni naslov družbe"]
[null,"A1.3","POOBLAŠČENEC"]
[null,null,"podatki se vpišejo, kadar je imenovan pooblaščenec"]
[null,null,"Investitor imenuje pooblaščenca",false]
[null,null,"ime in priimek ali naziv družbe"]
[null,null,"naslov ali poslovni naslov družbe"]
[null,"A2","PROJEKTANT"]
[null,"A2.1","PROJEKTANT "]
[null,null,"PODATKI O DRUŽBI"]
[null,null,"projektant (naziv družbe)"]
[null,"B","PODATKI O DOKUMENTACIJI"]
[null,"B2","PROJEKTNA DOKUMENTACIJA"]
[null,null,"postopek","PROJEKTNI POGOJI","MNENJA IN SOGLASJA"]
[null,null,"številka projekta"]
[null,null,"datum izdelave"]
[null,"C","PODATKI O GRADNJI"]
[null,"C1","OSNOVNI PODATKI"]
[null,"C1.1","OPIS GRADNJE"]
[null,null,"naziv gradnje"]
[null,null,"naziv gradnje se določi po namenu glavnega objekta"]
[null,null,"kratek opis gradnje"]
[null,null,"navedba objektov in njihovih značilnosti"]
[null,"C1.2","DOPUSTNA MANJŠA ODSTOPANJA"]
[null,null,"izpolniti v primeru zahteve za izdajo novega mnenja"]
[null,null,"opis dopustnih manjših odstopanj"]
[null,"C3","POSEBNI PRIMERI"]
[null,"C3.2","POROČILO O VPLIVIH NA OKOLJE (PVO)"]
[null,null,"podatki se vpišejo, kadar gre za objekt z vplivi na okolje"]
[null,null,"številka poročila"]
[null,null,"datum izdelave poročila"]
[null,null,"izdelovalec poročila"]
[null,"C3.8","PODATKI O OBJEKTU NA KATEREM SE IZVAJA NUJNA REKONSTRUKCIJA"]
[null,null,"naziv objekta"]
[null,null,"naslov objekta"]
[null,"F","UPRAVNI POSTOPKI"]
[null,"F2","MNENJEDAJALEC"]
[null,"F2.1","NAVEDBA MNENJEDAJALCA"]
[null,null,"MNENJEDAJALEC"]
[null,null,"navedba mnenjedajalca"]
[null,null,"naslov"]
[null,null,"odgovorna oseba mnenjedajalca"]
[null,"F2.2","PODATKI O POSTOPKU"]
[null,null,"naziv mnenja"]
[null,null,"postopek vodil"]
[null,null,"predpis oz. podlaga"]
[null,null,"PROJEKTNI POGOJI"]
[null,null,"št. projektnih pogojev"]
[null,null,"datum"]
[null,null,"MNENJE"]
[null,null,"št. mnenja"]
[null,null,"datum"]
[null,null,"SOGLASJE"]
[null,null,"št. soglasja"]
[null,null,"datum"]

{"sheet":"8B - POGOJI","index":2,"n_rows":51,"n_cols":3,"rows_kept":51,"cut":false,"hidden":false,"merged":[[8,0,8,1],[1,0,1,2],[4,0,4,1],[5,0,5,1],[6,0,6,1],[7,0,7,1]]}
["PRILOGA 8B"]
["PROJEKTNI POGOJI \nPRISTOJNEGA MNENJEDAJALCA"]
[]
["MNENJEDAJALEC"]
["navedba mnenjedajalca",null,{"$f":"'VNOS PODATKOV'!D62","v":0}]
["naslov",null,{"$f":"'VNOS PODATKOV'!D63","v":0}]
[{"$f":"'VNOS PODATKOV'!C70","v":"št. projektnih pogojev"},null,{"$f":"'VNOS PODATKOV'!D70","v":0}]
[{"$f":"'VNOS PODATKOV'!C71","v":"datum"},null,{"$f":"'VNOS PODATKOV'!D71","v":"00:00:00"}]
["predpis oz. podlaga za projektne pogoje",null,{"$f":"'VNOS PODATKOV'!D68","v":0}]
[{"$f":"'VNOS PODATKOV'!C67","v":"postopek vodil"},null,{"$f":"'VNOS PODATKOV'!D67","v":0}]
["podpis"]
[{"$f":"'VNOS PODATKOV'!C64","v":"odgovorna oseba mnenjedajalca"},null,{"$f":"'VNOS PODATKOV'!D64","v":0}]
["podpis"]
[]
[{"$f":"'VNOS PODATKOV'!C15","v":"INVESTITOR"}]
[{"$f":"'VNOS PODATKOV'!C16","v":"INVESTITOR 1"}]
[{"$f":"'VNOS PODATKOV'!C17","v":"ime in priimek ali naziv družbe"},null,{"$f":"'VNOS PODATKOV'!D17","v":0}]
[{"$f":"'VNOS PODATKOV'!C18","v":"naslov ali poslovni naslov družbe"},null,{"$f":"'VNOS PODATKOV'!D18","v":0}]
[{"$f":"'VNOS PODATKOV'!C19","v":"INVESTITOR 2"}]
[{"$f":"'VNOS PODATKOV'!C20","v":"ime in priimek ali naziv družbe"},null,{"$f":"'VNOS PODATKOV'!D20","v":0}]
[{"$f":"'VNOS PODATKOV'!C21","v":"naslov ali poslovni naslov družbe"},null,{"$f":"'VNOS PODATKOV'!D21","v":0}]
[{"$f":"'VNOS PODATKOV'!C22","v":"INVESTITOR 3"}]
[{"$f":"'VNOS PODATKOV'!C23","v":"ime in priimek ali naziv družbe"},null,{"$f":"'VNOS PODATKOV'!D23","v":0}]
[{"$f":"'VNOS PODATKOV'!C24","v":"naslov ali poslovni naslov družbe"},null,{"$f":"'VNOS PODATKOV'!D24","v":0}]
[]
[{"$f":"'VNOS PODATKOV'!C25","v":"POOBLAŠČENEC"}]
[{"$f":"'VNOS PODATKOV'!C26","v":"podatki se vpišejo, kadar je imenovan pooblaščenec"}]
[{"$f":"'VNOS PODATKOV'!C28","v":"ime in priimek ali naziv družbe"},null,{"$f":"IF('VNOS PODATKOV'!D$27=TRUE,'VNOS PODATKOV'!D28, \"\")","v":""}]
[{"$f":"'VNOS PODATKOV'!C29","v":"naslov ali poslovni naslov družbe"},null,{"$f":"IF('VNOS PODATKOV'!D$27=TRUE,'VNOS PODATKOV'!D29, \"\")","v":""}]
[]
[{"$f":"'VNOS PODATKOV'!C39","v":"PODATKI O GRADNJI"}]
[{"$f":"'VNOS PODATKOV'!C42","v":"naziv gradnje"},null,{"$f":"'VNOS PODATKOV'!D42","v":0}]
[{"$f":"'VNOS PODATKOV'!C44","v":"kratek opis gradnje"},null,{"$f":"'VNOS PODATKOV'!D44","v":0}]
[]
["PODATKI O DOKUMENTACIJI"]
[{"$f":"'VNOS PODATKOV'!C37","v":"številka projekta"},null,{"$f":"'VNOS PODATKOV'!D37","v":0}]
[{"$f":"'VNOS PODATKOV'!C38","v":"datum izdelave"},null,{"$f":"'VNOS PODATKOV'!D38","v":"00:00:00"}]
[{"$f":"'VNOS PODATKOV'!C33","v":"projektant (naziv družbe)"},null,{"$f":"'VNOS PODATKOV'!D33","v":0}]
["POGOJI ZA PRIPRAVO PROJEKTNE DOKUMENTACIJE, GRADNJO IN UPORABO OBJEKTA"]
["pogoji za DGD"]
["pogoji za PZI"]
["pogoji za izvajanje gradnje"]
["pogoji za uporabo objekta"]
[]
["OBRAZLOŽITEV PROJEKTNIH POGOJEV"]
["obrazložitev projektnih pogojev (strokovna in pravna utemeljitev)"]
[]
[null,null,"obrazložitev projektnih pogojev z navedbami strokovnih in pravnih podlag \nza odločitev je v prilogi"]
[]
["PRILOGA"]
[null,null,"Obrazložitev "]

{"sheet":"10A MNENJE","index":3,"n_rows":62,"n_cols":3,"rows_kept":62,"cut":false,"hidden":false,"merged":[[8,0,8,1],[9,0,9,1],[10,0,10,1],[1,0,1,2],[45,0,45,2],[41,0,41,1],[43,0,43,1],[3,0,3,1],[6,0,6,1],[7,0,7,1]]}
["PRILOGA 10A"]
["MNENJE \nPRISTOJNEGA MNENJEDAJALCA"]
[]
[{"$f":"'VNOS PODATKOV'!C66","v":"naziv mnenja"},null,{"$f":"'VNOS PODATKOV'!D66","v":0}]
[]
["MNENJEDAJALEC"]
["navedba mnenjedajalca",null,{"$f":"'VNOS PODATKOV'!D62","v":0}]
["naslov",null,{"$f":"'VNOS PODATKOV'!D63","v":0}]
[{"$f":"'VNOS PODATKOV'!C73","v":"št. mnenja"},null,{"$f":"'VNOS PODATKOV'!D73","v":0}]
[{"$f":"'VNOS PODATKOV'!C71","v":"datum"},null,{"$f":"'VNOS PODATKOV'!D74","v":"00:00:00"}]
["predpis oz. podlaga za mnenje",null,{"$f":"'VNOS PODATKOV'!D68","v":0}]
[{"$f":"'VNOS PODATKOV'!C67","v":"postopek vodil"},null,{"$f":"'VNOS PODATKOV'!D67","v":0}]
["podpis"]
[{"$f":"'VNOS PODATKOV'!C64","v":"odgovorna oseba mnenjedajalca"},null,{"$f":"'VNOS PODATKOV'!D64","v":0}]
["podpis"]
[]
[{"$f":"'VNOS PODATKOV'!C15","v":"INVESTITOR"}]
[{"$f":"'VNOS PODATKOV'!C16","v":"INVESTITOR 1"}]
[{"$f":"'VNOS PODATKOV'!C17","v":"ime in priimek ali naziv družbe"},null,{"$f":"'VNOS PODATKOV'!D17","v":0}]
[{"$f":"'VNOS PODATKOV'!C18","v":"naslov ali poslovni naslov družbe"},null,{"$f":"'VNOS PODATKOV'!D18","v":0}]
[{"$f":"'VNOS PODATKOV'!C19","v":"INVESTITOR 2"}]
[{"$f":"'VNOS PODATKOV'!C20","v":"ime in priimek ali naziv družbe"},null,{"$f":"'VNOS PODATKOV'!D20","v":0}]
[{"$f":"'VNOS PODATKOV'!C21","v":"naslov ali poslovni naslov družbe"},null,{"$f":"'VNOS PODATKOV'!D21","v":0}]
[{"$f":"'VNOS PODATKOV'!C22","v":"INVESTITOR 3"}]
[{"$f":"'VNOS PODATKOV'!C23","v":"ime in priimek ali naziv družbe"},null,{"$f":"'VNOS PODATKOV'!D23","v":0}]
[{"$f":"'VNOS PODATKOV'!C24","v":"naslov ali poslovni naslov družbe"},null,{"$f":"'VNOS PODATKOV'!D24","v":0}]
[]
[{"$f":"'VNOS PODATKOV'!C25","v":"POOBLAŠČENEC"}]
[{"$f":"'VNOS PODATKOV'!C26","v":"podatki se vpišejo, kadar je imenovan pooblaščenec"}]
[{"$f":"'VNOS PODATKOV'!C28","v":"ime in priimek ali naziv družbe"},null,{"$f":"IF('VNOS PODATKOV'!D$27=TRUE,'VNOS PODATKOV'!D28, \"\")","v":""}]
[{"$f":"'VNOS PODATKOV'!C29","v":"naslov ali poslovni naslov družbe"},null,{"$f":"IF('VNOS PODATKOV'!D$27=TRUE,'VNOS PODATKOV'!D29, \"\")","v":""}]
[]
[{"$f":"'VNOS PODATKOV'!C39","v":"PODATKI O GRADNJI"}]
[{"$f":"'VNOS PODATKOV'!C42","v":"naziv gradnje"},null,{"$f":"'VNOS PODATKOV'!D42","v":0}]
[{"$f":"'VNOS PODATKOV'!C44","v":"kratek opis gradnje"},null,{"$f":"'VNOS PODATKOV'!D44","v":0}]
["PODATKI O DOKUMENTACIJI"]
[{"$f":"'VNOS PODATKOV'!C37","v":"številka projekta"},null,{"$f":"'VNOS PODATKOV'!E37","v":0}]
[{"$f":"'VNOS PODATKOV'!C38","v":"datum izdelave"},null,{"$f":"'VNOS PODATKOV'!E38","v":"00:00:00"}]
[{"$f":"'VNOS PODATKOV'!C33","v":"projektant (naziv družbe)"},null,{"$f":"'VNOS PODATKOV'!D33","v":0}]
["POROČILO O VPLIVIH NA OKOLJE (PVO)"]
[{"$f":"'VNOS PODATKOV'!C51","v":"podatki se vpišejo, kadar gre za objekt z vplivi na okolje"}]
[{"$f":"'VNOS PODATKOV'!C52","v":"številka poročila"},null,{"$f":"'VNOS PODATKOV'!D52","v":0}]
[{"$f":"'VNOS PODATKOV'!C53","v":"datum izdelave poročila"},null,{"$f":"'VNOS PODATKOV'!D53","v":"00:00:00"}]
[{"$f":"'VNOS PODATKOV'!C54","v":"izdelovalec poročila"},null,{"$f":"'VNOS PODATKOV'!D54","v":0}]
[]
["MNENJE O SKLADNOSTI NAMERAVANE GRADNJE "]
[null,null,"Predložena dokumentacija oz. zahteva investitorja"]
[null,false,"JE SKLADNA s predpisi iz pristojnosti mnenjedajalca"]
[null,false,"NI SKLADNA s predpisi iz pristojnosti mnenjedajalca"]
[]
["POGOJI ZA PRIPRAVO PZI, GRADNJO IN UPORABO OBJEKTA"]
["pogoji za PZI"]
["pogoji za izvajanje gradnje"]
["pogoji za uporabo objekta"]
[]
["OBRAZLOŽITEV MNENJA"]
["obrazložitev mnenja \n(strokovna in pravna utemeljitev)"]
[]
[null,null,"obrazložitev mnenja z navedbami strokovnih in pravnih podlag za odločitev je v prilogi"]
[]
["PRILOGA"]
[null,null,"Obrazložitev "]

{"sheet":"20D SOGLASJE MR","index":4,"n_rows":37,"n_cols":3,"rows_kept":37,"cut":false,"hidden":false,"merged":[[8,0,8,1],[1,0,1,2],[4,0,4,1],[5,0,5,1],[6,0,6,1],[7,0,7,1]]}
["PRILOGA 20D"]
["SOGLASJE OBČINE GLEDE \nSKLADNOSTI MANJŠE REKONSTRUKCIJE \nS PROSTORSKIM AKTOM"]
[]
["OBČINA"]
["naziv občine",null,{"$f":"'VNOS PODATKOV'!D62","v":0}]
["naslov",null,{"$f":"'VNOS PODATKOV'!D63","v":0}]
[{"$f":"'VNOS PODATKOV'!C73","v":"št. mnenja"},null,{"$f":"'VNOS PODATKOV'!D76","v":0}]
[{"$f":"'VNOS PODATKOV'!C71","v":"datum"},null,{"$f":"'VNOS PODATKOV'!D77","v":"00:00:00"}]
["predpis oz. podlaga za mnenje",null,{"$f":"'VNOS PODATKOV'!D68","v":0}]
[{"$f":"'VNOS PODATKOV'!C67","v":"postopek vodil"},null,{"$f":"'VNOS PODATKOV'!D67","v":0}]
["podpis"]
[{"$f":"'VNOS PODATKOV'!C64","v":"odgovorna oseba mnenjedajalca"},null,{"$f":"'VNOS PODATKOV'!D64","v":0}]
["podpis"]
[]
[{"$f":"'VNOS PODATKOV'!C15","v":"INVESTITOR"}]
[{"$f":"'VNOS PODATKOV'!C16","v":"INVESTITOR 1"}]
[{"$f":"'VNOS PODATKOV'!C17","v":"ime in priimek ali naziv družbe"},null,{"$f":"'VNOS PODATKOV'!D17","v":0}]
[{"$f":"'VNOS PODATKOV'!C18","v":"naslov ali poslovni naslov družbe"},null,{"$f":"'VNOS PODATKOV'!D18","v":0}]
[{"$f":"'VNOS PODATKOV'!C19","v":"INVESTITOR 2"}]
[{"$f":"'VNOS PODATKOV'!C20","v":"ime in priimek ali naziv družbe"},null,{"$f":"'VNOS PODATKOV'!D20","v":0}]
[{"$f":"'VNOS PODATKOV'!C21","v":"naslov ali poslovni naslov družbe"},null,{"$f":"'VNOS PODATKOV'!D21","v":0}]
[{"$f":"'VNOS PODATKOV'!C22","v":"INVESTITOR 3"}]
[{"$f":"'VNOS PODATKOV'!C23","v":"ime in priimek ali naziv družbe"},null,{"$f":"'VNOS PODATKOV'!D23","v":0}]
[{"$f":"'VNOS PODATKOV'!C24","v":"naslov ali poslovni naslov družbe"},null,{"$f":"'VNOS PODATKOV'!D24","v":0}]
[]
[{"$f":"'VNOS PODATKOV'!C39","v":"PODATKI O GRADNJI"}]
[{"$f":"'VNOS PODATKOV'!C56","v":"naziv objekta"},null,{"$f":"'VNOS PODATKOV'!D56","v":0}]
[{"$f":"'VNOS PODATKOV'!C57","v":"naslov objekta"},null,{"$f":"'VNOS PODATKOV'!D57","v":0}]
[]
[null,null,"PREDVIDENA MANJŠA REKONSTRUKCIJA, KI PREDSTAVLJA:"]
[null,null,"označiti vsa ustrezna dela"]
[null,null,"manjše povečanje prostornine, ki ne poveča bruto tlorisne površine objekta, ter pomeni izvedbo posameznih konstrukcijskih elementov na objektu (izvedba frčade, vsaj z dveh strani odprt nadstrešek na obstoječi pohodni strehi, dvig obodnega zidu pod poševno streho za višino horizontalne vezi za največ 0,3 m, ipd.)"]
[null,null,"prizidavo nakladalnih ramp in klančin"]
[null,null,"izvedbo nepohodnega konzolnega nadstreška površine do 6 m2"]
[null,null,"prizidavo zunanjega odprtega stopnišča ali dvigala, ki ne povezuje več kot treh etaž in je zunanji rob stopnišča ali dvigala oddaljen od sosednjega objekta drugega lastnika več kot 4 m"]
[]
[null,null,"JE SKLADNA Z VELJAVNIM OBČINSKIM PROSTORSKIM AKTOM."]

{"sheet":"10B MNENJE DMO","index":5,"n_rows":46,"n_cols":3,"rows_kept":46,"cut":false,"hidden":false,"merged":[[7,0,7,1],[8,0,8,1],[34,0,34,2],[1,0,1,2],[4,0,4,1],[5,0,5,1],[6,0,6,1]]}
["PRILOGA 10B"]
["MNENJE GLEDE SKLADNOSTI \nDOPUSTNIH MANJŠIH ODSTOPANJ \nZ IZDANIM MNENJEM \nIN S PREDPISI IZ SVOJE PRISTOJNOSTI"]
[]
["MNENJEDAJALEC"]
["navedba mnenjedajalca",null,{"$f":"'VNOS PODATKOV'!D62","v":0}]
["naslov",null,{"$f":"'VNOS PODATKOV'!D63","v":0}]
[{"$f":"'VNOS PODATKOV'!C73","v":"št. mnenja"},null,{"$f":"'VNOS PODATKOV'!D73","v":0}]
[{"$f":"'VNOS PODATKOV'!C71","v":"datum"},null,{"$f":"'VNOS PODATKOV'!D74","v":"00:00:00"}]
["predpis oz. podlaga za mnenje",null,{"$f":"'VNOS PODATKOV'!D68","v":0}]
[{"$f":"'VNOS PODATKOV'!C67","v":"postopek vodil"},null,{"$f":"'VNOS PODATKOV'!D67","v":0}]
["podpis"]
[{"$f":"'VNOS PODATKOV'!C64","v":"odgovorna oseba mnenjedajalca"},null,{"$f":"'VNOS PODATKOV'!D64","v":0}]
["podpis"]
[]
[{"$f":"'VNOS PODATKOV'!C15","v":"INVESTITOR"}]
[{"$f":"'VNOS PODATKOV'!C16","v":"INVESTITOR 1"}]
[{"$f":"'VNOS PODATKOV'!C17","v":"ime in priimek ali naziv družbe"},null,{"$f":"'VNOS PODATKOV'!D17","v":0}]
[{"$f":"'VNOS PODATKOV'!C18","v":"naslov ali poslovni naslov družbe"},null,{"$f":"'VNOS PODATKOV'!D18","v":0}]
[{"$f":"'VNOS PODATKOV'!C19","v":"INVESTITOR 2"}]
[{"$f":"'VNOS PODATKOV'!C20","v":"ime in priimek ali naziv družbe"},null,{"$f":"'VNOS PODATKOV'!D20","v":0}]
[{"$f":"'VNOS PODATKOV'!C21","v":"naslov ali poslovni naslov družbe"},null,{"$f":"'VNOS PODATKOV'!D21","v":0}]
[{"$f":"'VNOS PODATKOV'!C22","v":"INVESTITOR 3"}]
[{"$f":"'VNOS PODATKOV'!C23","v":"ime in priimek ali naziv družbe"},null,{"$f":"'VNOS PODATKOV'!D23","v":0}]
[{"$f":"'VNOS PODATKOV'!C24","v":"naslov ali poslovni naslov družbe"},null,{"$f":"'VNOS PODATKOV'!D24","v":0}]
[]
[{"$f":"'VNOS PODATKOV'!C25","v":"POOBLAŠČENEC"}]
[{"$f":"'VNOS PODATKOV'!C26","v":"podatki se vpišejo, kadar je imenovan pooblaščenec"}]
[{"$f":"'VNOS PODATKOV'!C28","v":"ime in priimek ali naziv družbe"},null,{"$f":"IF('VNOS PODATKOV'!D$27=TRUE,'VNOS PODATKOV'!D28, \"\")","v":""}]
[{"$f":"'VNOS PODATKOV'!C29","v":"naslov ali poslovni naslov družbe"},null,{"$f":"IF('VNOS PODATKOV'!D$27=TRUE,'VNOS PODATKOV'!D29, \"\")","v":""}]
[]
[{"$f":"'VNOS PODATKOV'!C39","v":"PODATKI O GRADNJI"}]
[{"$f":"'VNOS PODATKOV'!C42","v":"naziv gradnje"},null,{"$f":"'VNOS PODATKOV'!D42","v":0}]
[{"$f":"'VNOS PODATKOV'!C44","v":"kratek opis gradnje"},null,{"$f":"'VNOS PODATKOV'!D44","v":0}]
["opis dopustnih manjših odstopanj",null,{"$f":"'VNOS PODATKOV'!D48","v":0}]
["MNENJE GLEDE SKLADNOSTI DOPUSTNIH MANJŠIH ODSTOPANJ Z IZDANIM MNENJEM"]
[null,null,"predvidena dopustna manjša odstopanja dokumentacije"]
[null,null,"SO SKLADNA s predpisi iz pristojnosti mnenjedajalca"]
[null,false,"NISO SKLADNA s predpisi iz pristojnosti mnenjedajalca"]
[]
["OBRAZLOŽITEV MNENJA"]
["obrazložitev mnenja \n(strokovna in pravna utemeljitev)"]
[]
[null,null,"obrazložitev mnenja z navedbami strokovnih in pravnih podlag za odločitev je v prilogi"]
[]
["PRILOGA"]
[null,null,"Obrazložitev "]

{"sheet":"BAZA PODATKOV","index":6,"n_rows":371,"n_cols":3,"rows_kept":371,"cut":false,"hidden":false,"merged":[]}
["VRSTE PROJEKTNE DOKUMENTACIJE"]
[]
["DPP (idejna zasnova za pridobitev projektnih pogojev)",1]
["DGD (projektna dokumentacija za pridobivanje mnenj in gradbenega dovoljenja)",2]
["PZI (projektna dokumentacija za izvedbo gradnje)",3]
["PZI v delu, ki se nanaša na pripravljalna dela",4]
["PID (projektna dokumentacija izvedenih del)",5]
["DL (dokumentacija za legalizacijo)",6]
["DNZO (dokumentacija za pridobitev gradbenega dovoljenja za nezahtevne objekte)",7]
["DSN (dokumentacija za pridobitev gradbenega dovoljenja za spremembo namembnosti)",8]
["DOZ (dokazilo o zanesljivosti)",9]
[]
["FAZA PROJEKTA"]
[]
["DPP",1]
["DGD",2]
["PZI",3]
["PID",4]
[]
["VRSTE NAČRTOV"]
[]
["0/1 Vodilni načrt - načrt arhitekture"]
["0/2 Vodilni načrt - načrt gradbeništva"]
["0/3 Vodilni načrt - načrt elektrotehnike"]
["0/4 Vodilni načrt - načrt strojništva"]
["0/5 Vodilni načrt - načrt tehnologije"]
["0/6 Vodilni načrt - načrt požarne varnosti"]
["0/7 Vodilni načrt - načrt geotehnologije in rudarstva"]
["0/8 Vodilni načrt - načrt geodezije"]
["0/9 Vodilni načrt - načrt prometnega inženirstva"]
["0/10 Vodilni načrt - načrt krajinske arhitekture"]
["0 Vodilna mapa"]
["1 Načrt s področja arhitekture",1]
["2 Načrt s področja gradbeništva",2]
["3 Načrt s področja elektrotehnike",3]
["4 Načrt s področja strojništva",4]
["5 Načrt s področja tehnologije",5]
["6 Načrt s področja požarne varnosti",6]
["7 Načrt s področja geotehnologije in rudarstva",7]
["8 Načrt s področja geodezije",8]
["9 Načrt s področja prometnega inženirstva",9]
["10 Načrt s področja krajinske arhitekture",10]
[]
["IZKAZI"]
[]
["izkaz energijskih karakteristik prezračevanja stavbe"]
["izkaz toplotnih karakteristik stavbe"]
["izkaz požarne varnosti"]
["izkaz zaščite pred hrupom"]
[]
["ZAGOTAVLJANJE MINIMALNE KOMUNALNE OSKRBE"]
[]
["priključevanje ni predvideno"]
["nov priključek"]
["obstoječ priključek"]
["lastni vir"]
[]
["ODVAJANJE FEKALNIH VODA"]
[]
["nov priključek"]
["obstoječ priključek"]
["pretočna greznica"]
["čistilna naprava"]
[]
["ODVAJANJE METEORNIH VODA"]
[]
["nov priključek"]
["obstoječ priključek"]
["odvajanje v vodotok"]
["razpršeno odvajanje"]
["ponikovalnica"]
[]
["DRUGA OSKRBA Z ENERGIJO"]
[]
["lastni vir"]
[]
["lokacija priključitve"]
[]
["/"]
["obstoječa merilna omarica"]
["nova merilna omarica"]
[]
["/"]
["obstoječ vodomerni jašek"]
["nov vodomerni jašek"]
[]
["PROSTORSKI AKTI"]
[]
["OPN"]
["DLN"]
["PUP"]
["ZN"]
[]
["VRSTE GRADNJE"]
[]
["novogradnja - novozgrajen objekt"]
["novogradnja - prizidava"]
["rekonstrukcija"]
["odstranitev"]
["sprememba namembnosti"]
[]
["ZAHTEVNOST OBJEKTOV"]
[]
["zahteven"]
["manj zahteven"]
["nezahteven"]
["enostaven"]
[]
["POŽARNA ZAHTEVNOST OBJEKTOV"]
[]
["požarno zahteven objekt"]
["požarno manj zahteven objekt"]
[]
["DA/NE"]
[]
["DA"]
["NE"]
[]
["VRSTA OBJEKTA"]
[]
["STAVBA"]
["GRADBENI INŽENIRSKI OBJEKT"]
[]
[]
["GLAVNI ALI PRIPADAJOČI"]
[]
["GLAVNI OBJEKT"]
["PRIPADAJOČI OBJEKT"]
[]
[]
["CC-SI STAVBE"]
[]
["11100 Enostanovanjske stavbe"]
["11210 Dvostanovanjske stavbe"]
["11220 Tri- in večstanovanjske stavbe "]
["11301 Stanovanjske stavbe z oskrbovanimi stanovanji"]
["11302 Stanovanjske stavbe za druge posebne družbene skupine"]
["12111 Hotelske in podobne stavbe za kratkotrajno nastanitev"]
["12112 Gostilne, restavracije in točilnice"]
["12120 Druge gostinske stavbe za kratkotrajno nastanitev"]
["12201 Stavbe javne uprave"]
["12202 Stavbe bank, pošt, zavarovalnic"]
["12203 Druge poslovne stavbe"]
["12204 Konferenčne in kongresne stavbe"]
["12301 Trgovske stavbe"]
["12302 Sejemske dvorane, razstavišča"]
["12303 Oskrbne postaje"]
["12304 Stavbe za storitvene dejavnosti"]
["12410 Postajna poslopja, terminali, stavbe za izvajanje komunikacij ter z njimi povezane stavbe "]
["12420 Garažne stavbe"]
["12510 Industrijske stavbe"]
["12520 Rezervoarji, silosi in skladiščne stavbe"]
["12610 Stavbe za kulturo in razvedrilo"]
["12620 Muzeji, arhivi in knjižnice"]
["12630 Stavbe za izobraževanje in znanstvenoraziskovalno delo"]
["12640 Stavbe za zdravstveno oskrbo"]
["12650 Stavbe za šport"]
["12711 Stavbe za rastlinsko pridelavo"]
["12712 Stavbe za rejo živali"]
["12713 Stavbe za skladiščenje pridelka"]
["12714 Druge nestanovanjske kmetijske stavbe "]
["12721 Stavbe za opravljanje verskih obredov"]
["12722 Pokopališke stavbe"]
["12730 Kulturna dediščina, ki se ne uporablja za druge namene"]
["12740 Druge stavbe, ki niso uvrščene drugje"]
[]
["CC-SI GRADBENI INŽENIRSKI OBJEKTI"]
[]
["21111 Avtoceste, hitre ceste in glavne ceste (daljinske ceste)"]
["21112 Regionalne ceste"]
["21121 Lokalne ceste in javne poti, nekategorizirane ceste in gozdne ceste"]
["21122 Samostojna parkirišča"]
["21210 Glavne in regionalne železniške proge"]
["21220 Mestne železniške proge"]
["21301 Letališke steze in ploščadi"]
["21302 Letalski radio-navigacijski objekti"]
["21410 Mostovi, viadukti, nadvozi, nadhodi "]
["21421 Predori "]
["21422 Podhodi"]
["21423 Pokriti vkopi in galerije"]
["21510 Pristanišča in plovbne poti"]
["21520 Jezovi, vodne pregrade in drugi vodni objekti"]
["21530 Sistem za namakanje in osuševanje, akvadukti"]
["22110 Naftovodi in daljinski (prenosni) plinovodi"]
["22121 Daljinski (transportni) vodovodi"]
["22122 Objekti za črpanje, filtriranje in zajem vode"]
["22130 Daljinsko (hrbtenično) komunikacijsko omrežje"]
["22140 Daljinski (prenosni) elektroenergetski vodi"]
["22210 Lokalni (distribucijski) plinovodi"]
["22221 Lokalni vodovodi za pitno vodo in cevovodi za tehnološko vodo"]
["22222 Lokalni cevovodi za toplo vodo, paro in stisnjen zrak"]
["22223 Vodni stolpi in vodnjaki "]
["22231 Cevovodi za odpadno vodo (kanalizacija)"]
["22232 Čistilne naprave"]
["22241 Lokalni (distribucijski) elektroenergetski vodi"]
["22242 Lokalna (dostopovna) komunikacijska omrežja"]
["23010 Objekti za pridobivanje in izkoriščanje mineralnih surovin"]
["23020 Elektrarne in drugi energetski objekti"]
["23030 Objekti kemične industrije"]
["23040 Objekti težke industrije, ki niso uvrščeni drugje"]
["24110 Športna igrišča"]
["24121 Marine "]
["24122 Drugi gradbeni inženirski objekti za šport, rekreacijo in prosti čas"]
["24201 Obrambni objekti"]
["24202 Drugi kmetijski gradbeni inženirski objekti"]
["24203 Objekti za ravnanje z odpadki"]
["24204 Pokopališča"]
["24205 Drugi gradbeni inženirski objekti, ki niso uvrščeni drugje"]
[]
["CC-SI DRUGI GRADBENI POSEGI"]
[]
["31110 Nasipi"]
["31120 Izkopi in odkopi"]
["31130 Utrjene površine "]
["31140 Utrjene brežine"]
["31150 Grajene gozdne vlake"]
["31160 Grajena območja urbanih vrtov"]
["32110 Ekološki otoki"]
["32120 Urbana oprema"]
["32130 Objekti za oglaševanje in informacijski panoji"]
["32140 Spominska obeležja"]
["33110 Grajeni prostori na drevesu"]
["33120 Grajeni prostori na vodi"]
["33130 Nepokrita prezentirana arheološka najdišča in ruševine"]
["33140 Merilna mesta za opazovanje naravnih pojavov, naravnih virov in stanja okolja"]
[]
["ZVKDS"]
[]
["ZVKDS, Območna enota Celje","Glavni trg 1, 3000 Celje","tajnistvo.ce@zvkds.si"]
["ZVKDS, Območna enota Kranj","Tomšičeva ulica 7, 4000 Kranj","tajnistvo.kr@zvkds.si"]
["ZVKDS, Območna enota Ljubljana","Tržaška cesta 4, 1000 Ljubljana","tajnistvo.lj@zvkds.si"]
["ZVKDS, Območna enota Maribor","Slomškov trg 6, 2000 Maribor","tajnistvo.mb@zvkds.si"]
["ZVKDS, Območna enota Nova Gorica","Delpinova ulica 16, 5000 Nova Gorica","tajnistvo.ng@zvkds.si"]
["ZVKDS, Območna enota Novo mesto","Skalickega ulica 1, 8000 Novo mesto","tajnistvo.nm@zvkds.si"]
["ZVKDS, Območna enota Piran","Trg bratstva 1, 6330 Piran/Pirano","tajnistvo.pi@zvkds.si"]
[]
["Zavod RS za varstvo narave"]
[]
["Zavod RS za varstvo narave, OE Celje","Vodnikova ulica 3, 3000 Celje","zrsvn.oece@zrsvn.si"]
["Zavod RS za varstvo narave, OE Kranj","PC Planina 3, 4000 Kranj","zrsvn.oekr@zrsvn.si"]
["Zavod RS za varstvo narave, OE Ljubljana","Cankarjeva 10, 1000 Ljubljana","zrsvn.oelj@zrsvn.si"]
["Zavod RS za varstvo narave, OE Maribor","Pobreška cesta 20a, 2000 Maribor","zrsvn.oemb@zrsvn.si"]
["Zavod RS za varstvo narave, OE Nova Gorica","Delpinova 16, 5000 Nova Gorica","zrsvn.oeng@zrsvn.si"]
["Zavod RS za varstvo narave, OE Novo mesto","Adamičeva ul. 2, 8000 Novo mesto","zrsvn.oenm@zrsvn.si"]
["Zavod RS za varstvo narave, OE Piran","Trg Etbina Kristana1, 6310 Izola","zrsvn.oepi@zrsvn.si"]
["Zavod RS za varstvo narave, Osrednja enota v Ljubljani","Tobačna ulica 5, 1000 Ljubljana","zrsvn.oe@zrsvn.si"]
[]
["Direkcija RS za vode"]
[]
["Direkcija Republike Slovenije za vode","Hajdrihova ulica 28c, 1000 Ljubljana","gp.drsv@gov.si"]
["Direkcija RS za vode, Sektor območja zgornje Save","Ulica Mirka Vadnova 5, 4000 Kranj","gp.drsv-kr@gov.si"]
["Direkcija RS za vode, Sektor območja srednje Save","Vojkova cesta 52, 1000 Ljubljana","gp.drsv-lj@gov.si"]
["Direkcija RS za vode, Sektor območja spodnje Save","Novi trg 9, 8000 Novo mesto","gp.drsv-nm@gov.si"]
["Direkcija RS za vode, Sektor območja jadranskih rek z morjem","Pristaniška ulica 12, 6000 Koper","gp.drsv-kp@gov.si"]
["Direkcija RS za vode, Sektor območja Soče","Cankarjeva ulica 62, 5000 Nova Gorica","gp.drsv-ng@gov.si"]
["Direkcija RS za vode, Sektor območja Savinje","Mariborska cesta 88, 3000 Celje","gp.drsv-ce@gov.si"]
["Direkcija RS za vode, Sektor območja Drave","Krekova ulica 17, 2000 Maribor","gp.drsv-mb@gov.si"]
["Direkcija RS za vode, Sektor območja Mure","Slovenska ulica 2, 9000 Murska Sobota","gp.drsv-ms@gov.si"]
[]
["Zavod za gozdove Slovenije"]
[]
["Zavod za gozdove Slovenije, Centralna enota Ljubljana","Večna pot 2, 1001 Ljubljana","zgs.tajnistvo@zgs.si"]
["ZGS, Območna enota Tolmin","Tumov drevored 17, 5220 Tolmin","OETolmin@zgs.si"]
["ZGS, Območna enota Ljubljana","Tržaška c. 2, 1000 Ljubljana","OELjubljana@zgs.si"]
["ZGS, Območna enota Novo mesto","Gubčeva 15, 8000 Novo mesto","OENovomesto@zgs.si"]
["ZGS, Območna enota Nazarje","Savinjska cesta 4, 3331 Nazarje","OENazarje@zgs.si"]
["ZGS, Območna enota Murska Sobota","Arh. Novaka 17, 9000 Murska Sobota","OEMurskaSobota@zgs.si"]
["Zavod za gozdove Slovenije, Območna enota Bled","Ljubljanska cesta 19, 4260 Bled","OEBled@zgs.si"]
["Zavod za gozdove Slovenije, Območna enota Postojna","Vojkova 9, 6230 Postojna","OEPostojna@zgs.si"]
["Zavod za gozdove Slovenije, Območna enota Brežice","C. bratov Milavcev 61, 8250 Brežice","OEBrezice@zgs.si"]
["Zavod za gozdove Slovenije, Območna enota Slovenj Gradec","Vorančev trg 1, 2380 Slovenj gradec","OESlovenjGradec@zgs.si"]
["Zavod za gozdove Slovenije, Območna enota Sežana","Partizanska 49, 6210 Sežana","OESezana@zgs.si"]
["Zavod za gozdove Slovenije, Območna enota Kranj","C. Staneta Žagarja 27b, 4000 Kranj","OEKranj@zgs.si"]
["Zavod za gozdove Slovenije, Območna enota Kočevje","Rožna ul. 39, 1330 Kočevje","OEKocevje@zgs.si"]
["Zavod za gozdove Slovenije, Območna enota Celje","Ljubljanska 13, 3000 Celje","OECelje@zgs.si"]
["Zavod za gozdove Slovenije, Območna enota Maribor","Tyrševa 15, 2000 Maribor","OEMaribor@zgs.si"]
[]
["Upravljavec javne ceste"]
[]
["Direkcija RS za infrastrukturo","Tržaška cesta 19, 1000 Ljubljana","gp.drsi@gov.si"]
["Družba za avtoceste RS ","Ulica XIV. divizije 4, 3000 Celje"]
[]
["Elektro"]
[]
["Elektro Celje","Vrunčeva 2a, 3000 Celje","info@elektro-celje.si"]
["Elektro Gorenjska","Ul. Mirka Vadnova 3a, 4000 Kranj","info@elektro-gorenjska.si"]
["Elektro Ljubljana","Slovenska cesta 58, 1516 Ljubljana","info@elektro-ljubljana.si"]
["Elektro Maribor","Vetrinjska ulica 2, 2000 Maribor","info@elektro-maribor.si"]
["Elektro Primorska","Erjavčeva ulica 22, 5000 Nova Gorica","info@elektro-primorska.si"]
["ELES","Hajdrihova 2, SI-1000 Ljubljana","info@eles.si"]
[]
["POLICIJSKA UPRAVA"]
[]
["Policijska uprava Celje ","Ljubljanska cesta 12 , 3000 Celje "]
["Policijska uprava Koper","Ukmarjev trg 6, 6000 Koper"]
["Policijska uprava Kranj","Bleiweisova cesta 3, 4000 Kranj "]
["Policijska uprava Ljubljana","Prešernova cesta 18, 1001 Ljubljana"]
["Policijska uprava Maribor","Maistrova ulica 2, 2001 Maribor"]
["Policijska uprava Murska Sobota","Ulica arhitekta Novaka 5. 9000 Murska Sobota"]
["Policijska uprava Nova Gorica ","Sedejeva ulica 11, 5000 Nova Gorica"]
["Policijska uprava Novo mesto","Ljubljanska cesta 30, 8000 Novo mesto "]
[]
["PODLAGE ZA PROJEKTIRANJE"]
[]
["TSG požarna varnost v stavbah"]
["zadnje stanje gradbene tehnike"]
[]
["TSG nizkonapetostne električne inštalacije"]
["zadnje stanje gradbene tehnike"]
[]
["TSG zaščita pred delovanjem strele"]
["zadnje stanje gradbene tehnike"]
[]
["TSG učinkovita raba energije"]
[]
["TSG zaščita pred hrupom v stavbah"]
["zadnje stanje gradbene tehnike"]
[]
["uporaba evrokodov"]
["uporaba drugih pravil"]
["brez uporabe pravil"]
[]
["MNENJA"]
[]
["OBČINA"]
[]
["VAROVANA OBMOČJA"]
["VARSTVO KULTURNE DEDIŠČINE - POSEG"]
["VARSTVO KULTURNE DEDIŠČINE - RAZISKAVA IN ODSTRANITEV"]
["VARSTVO NARAVE"]
["VARSTVO PODZEMNIH JAM"]
["VARSTVO VODA"]
["VARSTVO GOZDOV"]
["RIBIŠKI OKOLIŠ"]
["OKOLJE DIVJADI"]
["OBMOČJE MEJNEGA PREHODA"]
["CARINA"]
["LETALIŠČA"]
["OVIRE ZA ZRAČNI PROMET"]
["VARNOST PLOVBE"]
["OBJEKT V MEJAH RUDNIŠKEGA PROSTORA"]
["OBJEKT V VAROVALNEM PASU ŽIČNIŠKE NAPRAVE"]
[]
["VAROVALNI PASOVI INFRASTRUKTURE"]
["VODOVOD"]
["ELEKTRIKA"]
["PLIN"]
["TOPLOVOD"]
["FEKALNE VODE"]
["METEORNE VODE"]
["KOMUNIKACIJSKI VODI"]
["JAVNE CESTE"]
["ŽELEZNICE - GRADNJA"]
["ŽELEZNICE"]
[]
["PRIKLJUČEVANJE NA INFRASTRUKTURO"]
["VODOVOD"]
["ELEKTRIKA"]
["PLIN"]
["TOPLOVOD"]
["FEKALNE VODE"]
["METEORNE VODE"]
["DOSTOP"]
["KOMUNIKACIJE"]
[]
["DRUGA MNENJA"]
["JEDRSKA VARNOST "]
["SEVALNA VARNOST "]
["KMETIJSKO GOSPODARSTVO"]
["VETERINA"]
["OBRAMBA"]